{"text_format":"1","workbook":"xlsx","n_sheets":7,"sheets":["TDSheet","База","1","2","3","4","Справочники"],"not_rendered":{"charts":0,"images":0,"macros":1,"external_links":0,"defined_names":6,"comments":0,"pivot_tables":0},"unopened":[],"bounds":{"document_bytes":16777216,"sheet_cells":100000,"rows_first":2000,"rows_last":500,"rows_between":2000,"halvings":0,"cell_chars":16384,"cell_head_chars":4096},"cells_cut":0,"cells_raw":0,"read":"whole","date_system":"1900"}

{"sheet":"TDSheet","index":0,"n_rows":28,"n_cols":14,"rows_kept":28,"cut":false,"hidden":false,"merged":[[22,36,22,46],[26,0,26,1],[27,0,27,4],[10,0,10,5],[11,0,11,5],[26,3,26,4]]}
[]
[]
[]
[]
[]
[]
[]
[]
[]
[]
[]
[null,null,null,null,null,null,null,null,null,null,null,null,null,39]
[]
[]
["№","Наименование","Цена","Кол-во","Ед.","Сумма","Срок поставки"]
[1,null,null,1,"шт.",{"$f":"C16*D16","v":0},"Склад"]
[2,null,null,1,"шт.",0,"3-4 дня"]
[3,null,null,1,"шт.",0,"3-4 дня"]
[4,null,null,1,"шт.",0,"Склад"]
[5,null,null,1,"шт.",0,"7-10 дней"]
[6,null,null,1,"шт.",0,"7-10 дней"]
[7,null,null,1,"шт.",0,"7-10 дней"]
[8,null,null,1,"шт.",0,"7-10 дней"]
[9,null,null,1,"шт.",0,"7-10 дней"]
[10,null,null,1,"шт.",0,"7-10 дней"]
[11,null,null,1,"шт.",0,"7-10 дней"]
[null,null,null,"ИТОГО  ",null,{"$f":"SUM(F16:F26)","v":0}]
["В том числе НДС ",null,null,null,null,{"$f":"F27*18/118","v":0}]

{"sheet":"База","index":1,"n_rows":0,"n_cols":0,"rows_kept":0,"cut":false,"hidden":false,"merged":[]}

{"sheet":"1","index":2,"n_rows":6,"n_cols":4,"rows_kept":6,"cut":false,"hidden":false,"merged":[]}
[null,"Пульт контроля и управления светодиодный С2000-КС Пульт и клавиатура со светодиодными индикаторами на 20 охранных или пожарных зон",{"$f":"D1*1.06","v":2906.52},2742]
[null,"Прибор приемно-контрольный охранно-пожарный Сигнал-10, Uпит.12В или 24В,   2 контрол.вых.\"ОК\" (=28В/1А), RS-485, tраб.-30...+50°С, IP20, 156х107х39, управление ТМ  (до 85 ключей), програм.с комп., габарит.размеры 156х107х35 мм",2288.54,2159]
[null,"ИП 212-141М с КМЧ извещатель пожарный дымовой оптико-электронный точечный для подвесного потолка",296.8,280]
[null,"Извещатель пожарный ручной ИПР 513-10. питание 9-30 В, 50 мкА, с кнопкой, с крышкой.",163.24,154]
[null,"Оповещатель охранно-пожарный световой (табло) Молния-12 \"Выход\" Габаритные размеры, мм 304х103х19, 0.22 кг",147.34,139]
[null,"Маяк-12-КП Оповещатель охранно-пожарный\nкомбинированный свето-звуковой. 105 дБ, 12 В, 0,075А",153.70000000000002,145]

{"sheet":"2","index":3,"n_rows":12,"n_cols":3,"rows_kept":12,"cut":false,"hidden":false,"merged":[]}
[null,"Видеокамера JSH-X200IR  3.6/2.8   Уличная 2-мегапиксельная видеокамера, AHD/TVI/CVI:1080P, f=2.8/3.6mm, ИК-подсветка 25м, IP66, -35°С +50°С, DC 12В, 400 мА, размер 67х195мм, 440 гр.",1876]
[null,"Видеорегистратор JSR-H1616(AHD/TVI/CVI - 720р) 16-канальный  регистратор с поддержкой разрешения записи 720N/960H VGA+HDMI, 2 HDD до 6ТБ, Ethernet 100Mbit/s, RS-485, 12v 4A ",8820]
[null,"Видеокамера JSH-D100IR  3.6/2.8   Уличная 1-мегапиксельная видеокамера, AHD/TVI/CVI:1080P, f=2.8/3.6mm, ИК-подсветка 25м, IP66, -35°С +50°С, DC 12В, 400 мА, размер 67х195мм, 440 гр.",1305]
[null,"ББП-50 исп.1 Блок бесперебойного питания, входное напряжение 110...220 В, выходное напряжение 13,6±0,2 В, номинальный выходной ток 5 А  под АКБ 7 Ач.",2000]
[null,"Жесткий диск SEAGATE Skyhawk ST4000VX007 форм-фактор 3.5\"; тип: HDD; интерфейс: SATA III; объём: 4Тб; скорость вращения шпинделя 5900об/мин; буферная память 64Мб",9500]
[null,"Видеорегистратор JSR-H1626 (AHD/TVI/CVI - 1080р) 16-канальный  регистратор с поддержкой разрешения записи 1080N/960H VGA+HDMI, 2 HDD до 6ТБ, Ethernet 100Mbit/s, RS-485, 12v 4A",8190]
[null,"Видеокамера JSH-D200IR  2.8   Купольная 2-мегапиксельная видеокамера, AHD/TVI/CVI:1080P, CVBS:960H, f=3.6/2.8мм, ИК-подсветка 20м, IP65, -10°С +50°С, DC 12В, 400 мА, 270 гр     ",1645]
[null,"Видеорегистратор JSR-H0826 mini   (AHD/TVI/CVI - 1080р) 8-канальный  регистратор с поддержкой разрешения записи 1080N/960H VGA+HDMI, 2 HDD до 6ТБ, Ethernet 100Mbit/s, RS-485, 12v 4A ",9760]
[null,"Видеокамера JSH-X100IR  3.6/2.8   Уличная 1-мегапиксельная видеокамера, AHD/TVI/CVI:1080P, f=2.8/3.6mm, ИК-подсветка 25м, IP66, -35°С +50°С, DC 12В, 400 мА, размер 67х195мм, 440 гр.",1421]
[null,"Видеорегистратор JSR-H1626(AHD/TVI/CVI - 1080р) 16-канальный  регистратор с поддержкой разрешения записи 1080N/960H VGA+HDMI, 2 HDD до 6ТБ, Ethernet 100Mbit/s, RS-485, 12v 4A ",12187.5]
[null,"Видеокамера JSH-DPM200IR (2.8mm)\nКупольная МИНИАТЮРНАЯ антивандальная мультиформатная камера разрешением 2 мегапикселя (1080p) с фиксированным объективом.",2115]
[null,null,1426]

{"sheet":"3","index":4,"n_rows":15,"n_cols":3,"rows_kept":15,"cut":false,"hidden":false,"merged":[]}
[null,"Контакт GSM-5-2 (без голоса) с контролем АКБ  Контроль 8…16 шлейфов охранно пожарной сигнализации (до 16 разделов), передает информацию о состоянии прибора на пульт централизованного наблюдения по голосовому, цифровому каналу GSM или через ",6000]
[null,"Извещатель охранный поверхностный звуковой Астра-С (ИО 329-5) Извещатель звуковой разрушения стекла, дальность 6 м",524.5]
[null,"Извещатель охранный точечный магнитоконтактный ИО 102-2 (СМК-1)",55]
[null,"Астра-5 исп. А Извещатель охранный объемный оптико-электронный (ИО 409-10) 12 м, 90 гр., антисаботажная зона, t: -30…+50С",523]
[null,"Устройство оконечное объектовое приемно-контрольное c GSM коммуникатором Гранит-3А 3 ШС, Iшс.2мА, 2 SIM карты, оповещение по GSM, ГТС (голос, SMS) до 6 номеров, управление с помощью ТМ или кнопками, Uпит.220В, под АКБ 12В/7Ач, tраб.-20...+45°С, 285х210х95мм, програм. через USB порт.",6900]
[null,"Извещатель охранный объемный оптико-электронный Фотон-9 (ИО 409-8) Оптико-электронный объемный, микропроц., 10 м х 90°, термокомпенсация, тампер, Uпит.12В, Iпотр.15мА, IP41, tраб.0…+50°С, 87х61х40,5 мм",530]
[null,"Оповещатель охранно-пожарный звуковой Иволга (ПКИ-1) Оповещатель звуковой, уровень звукового давления 95...110 дБ, напряжение питания 9...15 В, ток потребления 25...30 мА, степень защиты оболочкой IP41, диапазон рабочих температур -30...+55°С, габаритные размеры 85х70х55 мм",160]
[null,"Термодатчик DS18B20 3,5 мм выносной в металлической оболочке для работы совместно с ППКОП \"Гранит-А\", обеспечивает контроль за температурой в охраняемом помещении. Диапазон  температуры (- 55 до +125) °C, длинна кабеля 1,5 м.",720]
[null,"Извещатель охранный поверхностный вибрационный Шорох-2 (ИО 313-5/1) Поверхностный вибрационный (одноблочный), микропроц., чувств.0,1…1,6 м/с², контр.площадь до 12 м², Uпит.9…17В, Iпотр.25мА, IP30, tраб.-30...+50°С, 105х45х35 мм",1020]
[null,"Извещатель охранный поверхностный совмещенный Астра-621 (ИО 415-2) ИК + акустический, настенный, t: -10…+45С, без кронштейна",815]
[null,"Блок индикации с клавиатурой С2000-БКИ Блок индикации и управления для работы в составе ИСО \"Орион\", 60 индикаторов, RS-485, встроенный считыватель TouchMemory, U-пит.10,2...28,4 В,, t-раб.-30...+50°С,  размеры 340х170х27,5 мм",4435.2]
[null,"Радиоканальный повторитель интерфейсов С2000-РПИ Радиоканальный повторитель интерфейса RS485/RS232, навесная антенна, дальность радиосвязи до 600 м",3288]
[null,"Источник питания резервированный РИП-12 исп. 01  входное напряжение 150...250 В, выходное напряжение 13...14,2 В, ток нагрузки 3 А,  под аккумулятор 12 В 17 Ач,, диапазон рабочих температур -10...+40°С, размеры 255х310х95 мм",3373.61]
[null,"Аккумулятор 12 В, 17 А/ч Свинцово-кислотный, герметичный аккумулятор, 12В/17Ач, клеммы под болт с гайкой 5.5 мм, 181х76х167мм, 5.17 кг",1790]
[null,"Прибор приемно-контрольный охранно-пожарный Сигнал-10, Uпит.12В или 24В,   2 контрол.вых.\"ОК\" (=28В/1А), RS-485, tраб.-30...+50°С, IP20, 156х107х39, управление ТМ  (до 85 ключей), програм.с комп., габарит.размеры 156х107х35 мм",2159.5500000000002]

{"sheet":"4","index":5,"n_rows":22,"n_cols":4,"rows_kept":22,"cut":false,"hidden":false,"merged":[]}
[null,"TANTOS LILU простой и изящный цветной монитор домофона. Цветной TFT-монитор диагональю 4,3” обеспечивает хорошее качество картинки. Позволяет подключать до двух вызывных панелей",3300]
[null,"Stich (черная). Вызывная панель видеодомофона, накладная, камера 800 ТВЛ, PAL, угол обзора 53 град., -30С...+50С, IP66, четырехпроводная схема подключения. ",2000]
[null,"TS-DC065 венге Доводчик дверной, усилие EN3, вес двери до 75 кг, две регулировки: скорость закрывания и скорость доводки, рабочая температура: -35..+60С, габаритные размеры: 186х44.5х67мм, установочные размеры:168х19 мм, материал: алюминий, цвет: венге   ",1560]
[null,"Брелок EM-Marine Proximity 125 кГц, с кольцом для крепления. Идентификационный номер нанесен на поверхность ",18]
[null,"М1-300 (коричневый) Замок электромагнитный, 300 кг, 12В DC/0.33А. Вес 2 кг, 140х55х35 мм, t=-40~+50°С. В комплекте крепежный уголок.",1692]
[null,"DORMA TS-77 EN4  Доводчик, до 120 кг Дверной доводчик. Для внешних и внутренних дверей до 90кг, до 1200мм. Допустимая температура эксплуатации от -15 до +40˚ С",{"$f":"D6*1.06","v":0}]
[null,"Tantos HO-02  Кнопка выхода накладная прямоугольная, надпись \"ВЫХОД\", пластик",50]
[null,"Источник электропитания малогабаритный Моллюск 12/3.  входное напряжение 100...250 В, выходное напряжение 11,5…12,5 В, максимальный ток нагрузки 3 А, диапазон рабочих температур -30…+40°С, габаритные размеры 49х133х33 мм",950]
[null,"Tantos TS-ML300 Электромагнитный замок с усилием удержания 300 кг. Предназначен для запирания дверей, ворот, в том числе для работы совместно с домофонами, контроллерами СКУД ",1350]
[null,"Tantos TS-LM300 Монтажный L-образный уголок для крепления электромагнитного замка TS-ML300 на вертикальную поверхность. Предназначен для дверей, открывающихся наружу.",250]
[null,"Контроллер для ключей Touch Memory Z-5R",450]
[null,"TANTOS DS1990A iButton TS - ключ Touch Memory TM1990A-F5 с пластиковым держателем чёрного цвета.",25]
[null,"Накладная кнопка выхода КН-05 с подсветкой, крепление наружное (металл). Контакты нормально разомкнутые. Габариты, диаметр: 38х10 мм.",150]
[null,"Терминал УРВ  SIGUR E100 Терминал учета рабочего времени SIGUR \"E100\", неограниченное количество пользователей, 40 000 событий, 2 встроенных считывателя EM-Marin, Ethernet, 0...+45°C",14628,13800]
[null,"Sigur контроллер E500 Сетевой контроллер. Управление  двумя дверьми (два считывателя на дверь)Максимально до 7000 ключей, 500 временных зон и 40000 событий в автономной энергонезависимой памяти.",14250,13400]
[null,"Sigur Базовый модуль до 50 ключей",3600,3300]
[null,"Sigur Обновление лицензии базового модуля ( от 50 до 1000 ключей)",10600,9999]
[null,"Sigur Дополнительный модуль учет рабочего времени",11300,10642.5]
[null,"Sigur Дополнительный модуль \"Выгрузка табеля в 1С\"",10700,10080]
[null,"Считыватель бесконтактный  Matrix II-EH (светло- серый) Считыватель карт HID и EM-Marine, выходной интерфейс ТМ или Wiegand 26, питание 8-15 В, Размеры: 85х44х18 мм       ",1500,1415]
[null,"Циклоп (медный антик)  Кнопка выхода накладная НО, металл, подсветка, 12В, 0.1А      ",290]
[null,"Карта толстая EM-Marin Сlamshell (БЕЛАЯ) (произвольная нумерация)",{"$f":"D22","v":15},15]

{"sheet":"Справочники","index":6,"n_rows":21,"n_cols":2,"rows_kept":21,"cut":false,"hidden":false,"merged":[]}
[]
[]
[]
[]
[]
[]
[]
[]
[]
[]
[]
[]
["Единицы измерения","Срок поставки"]
["шт.","Склад"]
["м.","3-4 дня"]
["бух.","5-7 дней"]
["уп.","7-10 дней"]
[null,"неделя"]
[null,"1,5 недели"]
[null,"2 недели"]
[null,"месяц"]